fUSD/lending_fUSD_20250823
["ID","MTS","AMOUNT","RATE_DAILY","PERIOD"]
[381050422,1755973845588,-956.18840812,0.0002192,4]
[381050423,1755973845598,-956.18840812,0.0002192,4]
[381050424,1755973845607,-956.18840812,0.0002192,4]
[381050425,1755973845616,-956.18840812,0.0002192,4]
[381050426,1755973845626,-956.18840812,0.0002192,4]
[381050427,1755973845635,-956.18840812,0.0002192,4]
[381050428,1755973845645,-956.18840812,0.0002192,4]
[381050429,1755973845654,-956.18840812,0.0002192,4]
[381050430,1755973845663,-956.18840812,0.0002192,4]
[381050431,1755973845674,-956.18840812,0.0002192,4]
[381050432,1755973845683,-956.18840812,0.0002192,4]
[381050433,1755973845693,-956.18840812,0.0002192,4]
[381050434,1755973845703,-956.18840812,0.0002192,4]
[381050435,1755973845712,-956.18,0.0002192,4]
[381050436,1755973845721,-330.79904688,0.0002192,4]
[381050437,1755973845731,-330.79904688,0.0002192,4]
[381050438,1755973845741,-330.79904688,0.0002192,4]
[381050439,1755973845753,-330.79904688,0.0002192,4]
[381050440,1755973845762,-330.79904688,0.0002192,4]
[381050443,1755973845772,-330.79904688,0.0002192,4]
[381050444,1755973845886,-330.79904688,0.0002192,4]
[381050445,1755973845895,-330.79904688,0.0002192,4]
[381050446,1755973845905,-330.79904688,0.0002192,4]
[381050447,1755973845914,-330.79904688,0.0002192,4]
[381050448,1755973845923,-330.79904688,0.0002192,4]
[381050449,1755973845933,-330.79904688,0.0002192,4]
[381050450,1755973845942,-330.79904688,0.0002192,4]
[381050451,1755973845951,-330.79904688,0.0002192,4]
[381050452,1755973845959,-330.79904688,0.0002192,4]
[381050453,1755973845968,-330.79904688,0.0002192,4]
[381050454,1755973845978,-330.79904688,0.0002192,4]
[381050455,1755973845987,-330.79904688,0.0002192,4]
[381050456,1755973845997,-330.79904688,0.0002192,4]
[381050457,1755973846007,-330.79,0.0002192,4]
[381050458,1755973846017,-771.86444271,0.0002192,4]
[381050459,1755973846026,-771.86444271,0.0002192,4]
[381050460,1755973846035,-771.86444271,0.0002192,4]
[381050461,1755973846045,-771.86444271,0.0002192,4]
[381050462,1755973846055,-771.86444271,0.0002192,4]
[381050463,1755973846064,-771.86444271,0.0002192,4]
[381050464,1755973846074,-771.86444271,0.0002192,4]
[381050465,1755973846083,-771.86444271,0.0002192,4]
[381050466,1755973846093,-771.86444271,0.0002192,4]
[381050467,1755973846102,-771.86444271,0.0002192,4]
[381050468,1755973846111,-771.86444271,0.0002192,4]
[381050469,1755973846121,-771.86444271,0.0002192,4]
[381050470,1755973846130,-771.86444271,0.0002192,4]
[381050471,1755973846139,-771.86444271,0.0002192,4]
[381050472,1755973846149,-771.86444271,0.0002192,4]
[381050473,1755973846159,-771.86444271,0.0002192,4]
[381050474,1755973846168,-771.86444271,0.0002192,4]
[381050475,1755973846178,-771.86444271,0.0002192,4]
[381050476,1755973846187,-771.86444271,0.0002192,4]
[381050477,1755973846196,-771.86,0.0002192,4]
[381050478,1755973846205,-3052.56,0.00021945,30]
[381050479,1755973846215,-183.36312491,0.00021947,2]
[381050480,1755973846224,-2000.0,0.00021999,2]
[381050481,1755973846234,-4000.0,0.00022,4]
[381050482,1755973846243,-152.99917311,0.000221,2]
[381050483,1755973846252,-2072.59,0.000221,2]
[381050484,1755973846261,-381.9753551,0.00022162,2]
[381050485,1755973846271,-600.0,0.00022164,2]
[381050486,1755973846280,-4153.0,0.00022436,2]
[381050487,1755973846289,-894.0,0.00022436,2]
[381050488,1755973846298,-422.41668543,0.00022449,2]
[381050489,1755973846307,-3500.0,0.00022457,2]
[381050490,1755973846316,-326.39899922,0.00022466,2]
[381050491,1755973846325,-151.41,0.00022603,2]
[381050492,1755973846334,-600.0,0.00022712,2]
[381050493,1755973846344,-3851.55,0.00022739,4]
[381050494,1755973846353,-240.0,0.000228,2]
[381050495,1755973846362,-380.0,0.000228,2]
[381050496,1755973846371,-973.0,0.000228,2]
[381050497,1755973846381,-41055.83247342,0.000228,2]
[381050500,1755973848208,-1075.65206462,0.000228,2]
[381050501,1755973848221,-68789.153844,0.000228,2]
[381050502,1755973849604,-666.11175096,0.000228,2]
[381050503,1755973849616,-1814.4598,0.000228,2]
[381050504,1755973849642,-637.35369467,0.000228,2]
[381050505,1755973849660,-2952.27319475,0.000228,2]
[381050506,1755973852177,181.16,0.00026648,120]
[381050573,1755974108354,177.0,0.00022971,120]
[381050574,1755974109592,177.0,0.00024119,120]
[381050575,1755974110952,177.0,0.00025325,120]
[381050576,1755974112522,177.0,0.00026591,120]
[381050577,1755974113892,177.0,0.00027921,120]
[381050594,1755974140078,56769.11867162,0.00011973,5]
[381050595,1755974140104,49709.49014133,0.00011973,5]
[381050631,1755974408389,177.0,0.00022994,120]
[381050632,1755974409679,177.0,0.00024143,120]
[381050633,1755974410966,177.0,0.0002535,120]
[381050634,1755974412256,177.0,0.00026618,120]
[381050635,1755974414540,177.0,0.00027949,120]
[381050774,1755974840159,174.45,0.00027485,120]
[381050821,1755975032298,-302.60470668,0.00013382,2]
[381050822,1755975032308,-2000.0,0.00013383,3]
[381050823,1755975032318,-183.92333477,0.00013599,2]
[381050824,1755975032328,-1000.0,0.00013699,2]
[381050825,1755975032338,-1523.0,0.00014362,2]
[381050826,1755975032348,-300.0,0.00014692,2]
[381050827,1755975032358,-151.0,0.00014693,2]
[381050828,1755975032368,-500.0,0.00014693,2]
[381050829,1755975032377,-200.0,0.00014693,2]
[381050830,1755975032387,-154.33603957,0.00014693,2]
[381050831,1755975032396,-151.0,0.00014693,2]
[381050832,1755975032405,-151.0,0.00014693,2]
[381050833,1755975032415,-151.0,0.00014693,2]
[381050834,1755975032424,-151.0,0.00014693,2]
[381050835,1755975032434,-151.0,0.00014693,2]
[381050836,1755975032443,-7602.5774326,0.00014702,2]
[381050837,1755975032453,-250.0,0.00014721,2]
[381050838,1755975032462,-2000.0,0.00014721,3]
[381050839,1755975032471,-500.0,0.00014748,2]
[381050840,1755975032489,-500.0,0.00014803,2]
[381050841,1755975032499,-500.0,0.00014858,2]
[381050842,1755975032509,-500.0,0.00014913,2]
[381050843,1755975032518,-500.0,0.00014968,2]
[381050844,1755975032530,-250.0,0.00015,2]
[381050845,1755975032539,-500.0,0.00015023,2]
[381050846,1755975032550,-500.0,0.00015078,2]
[381050847,1755975032560,-500.0,0.00015133,2]
[381050848,1755975032570,-500.0,0.00015188,2]
[381050849,1755975032581,-500.0,0.00015243,2]
[381050850,1755975032591,-183.92333477,0.00015901,2]
[381050851,1755975032602,-420.0,0.00016085,2]
[381050852,1755975032612,-153.0,0.00016164,2]
[381050853,1755975032621,-153.0,0.00016164,2]
[381050855,1755975032631,-600.0,0.00016438,2]
[381050857,1755975032641,-600.0,0.00016438,2]
[381050859,1755975032650,-600.0,0.00016438,2]
[381050861,1755975032660,-600.0,0.00016438,2]
[381050863,1755975032669,-600.0,0.00016438,2]
[381050865,1755975032679,-600.0,0.00016438,2]
[381050867,1755975032688,-600.0,0.00016438,2]
[381050870,1755975032699,-600.0,0.00016438,2]
[381050872,1755975032708,-600.0,0.00016438,2]
[381050874,1755975032718,-600.0,0.00016438,2]
[381050875,1755975032736,-600.0,0.00016438,2]
[381050877,1755975032747,-2670.21136636,0.0001669,2]
[381050879,1755975032757,-158.45,0.00016712,2]
[381050881,1755975032767,-300.0,0.00017,2]
[381050882,1755975032778,-368.62,0.00017166,2]
[381050884,1755975032787,-151.0,0.00017301,2]
[381050886,1755975032797,-151.0,0.00017317,2]
[381050888,1755975032808,-151.0,0.00017321,2]
[381050890,1755975032818,-151.0,0.00017324,2]
[381050892,1755975032828,-151.0,0.00017432,2]
[381050894,1755975032837,-200.0,0.00017432,2]
[381050897,1755975032847,-500.0,0.0001756,2]
[381050898,1755975032857,-587.0,0.00017609,2]
[381050901,1755975032867,-794.07661448,0.00017644,2]
[381050902,1755975032877,-500.0,0.00017808,2]
[381050904,1755975032887,-1167.49,0.0001786,2]
[381050906,1755975032896,-500.0,0.00017886,2]
[381050908,1755975032906,-1000.0,0.00017901,2]
[381050909,1755975032915,-162.33233317,0.00017919,2]
[381050910,1755975032924,-399.22151483,0.00017919,2]
[381050911,1755975032934,-11807.6554138,0.0001792,2]
[381050912,1755975032944,-160.0,0.00017956,2]
[381050913,1755975032953,-844.27675029,0.00017956,2]
[381050914,1755975032963,-458.60200496,0.00017956,2]
[381050915,1755975032972,-212.10093811,0.00017956,2]
[381050916,1755975032981,-500.0,0.00017965,2]
[381050917,1755975032991,-500.0,0.00018043,2]
[381050918,1755975033000,-500.0,0.00018121,2]
[381050919,1755975033009,-250.0,0.00018123,2]
[381050920,1755975033019,-500.0,0.000182,2]
[381050921,1755975033029,-183.92333477,0.00018202,2]
[381050922,1755975033040,-500.0,0.00018278,2]
[381050923,1755975033050,-658.68,0.000183,2]
[381050924,1755975033060,-174.45,0.00018323,2]
[381050925,1755975033070,-150.0,0.00018323,2]
[381050926,1755975033079,-500.0,0.00018356,2]
[381050927,1755975033089,-160.0,0.00018419,7]
[381050928,1755975033099,-500.0,0.00018434,2]
[381050929,1755975033108,-398.94267664,0.00018453,2]
[381050930,1755975033140,-601.05732336,0.00018453,2]
[381050931,1755975033150,-254.75951197,0.00018513,2]
[381050932,1755975033162,-245.24048803,0.00018513,2]
[381050933,1755975033171,-323.05907648,0.00018591,2]
[381050934,1755975033182,-176.94092352,0.00018591,2]
[381050935,1755975033192,-1734.89230514,0.00018638,2]
[381050936,1755975033203,-294.84302077,0.00018638,2]
[381050937,1755975033214,-721.26467409,0.00018638,2]
[381050938,1755975033224,-500.0,0.00018669,2]
[381050939,1755975033234,-500.0,0.00018748,2]
[381050940,1755975033243,-181.50331078,0.00018788,3]
[381050941,1755975033255,-484.49668922,0.00018788,3]
[381050942,1755975033264,-140.68961516,0.00018795,2]
[381050943,1755975033276,-181.92108484,0.00018795,2]
[381050944,1755975033285,-1209.80831516,0.00018795,2]
[381050945,1755975033296,-4182.00769253,0.00018795,2]
[381050946,1755975033306,-160.0,0.00018795,2]
[381050947,1755975033315,-600.35242987,0.00018795,2]
[381050948,1755975033326,-120.77522548,0.00018795,2]
[381050949,1755975033336,-1000.0,0.00018795,2]
[381050950,1755975033345,-1000.0,0.00018795,2]
[381050951,1755975033354,-1000.0,0.00018795,2]
[381050952,1755975033364,-1000.0,0.00018795,2]
[381050953,1755975033373,-1000.0,0.00018795,2]
[381050954,1755975033382,-1000.0,0.00018795,2]
[381050955,1755975033391,-1000.0,0.00018795,2]
[381050956,1755975033401,-225.93613621,0.00018795,2]
[381050957,1755975033410,-1000.0,0.00018795,2]
[381050958,1755975033419,-1000.0,0.00018795,2]
[381050959,1755975033428,-1000.0,0.00018795,2]
[381050960,1755975033438,-1000.0,0.00018795,2]
[381050961,1755975033447,-277.35679052,0.00018795,2]
[381050962,1755975033457,-1000.0,0.00018795,2]
[381050963,1755975033466,-1000.0,0.00018795,2]
[381050964,1755975033476,-1000.0,0.00018795,2]
[381050965,1755975033485,-1000.0,0.00018795,2]
[381050966,1755975033495,-1000.0,0.00018795,2]
[381050967,1755975033503,-151.0,0.00018795,2]
[381050968,1755975033512,-1000.0,0.00018795,2]
[381050969,1755975033522,-1000.0,0.00018795,2]
[381050970,1755975033531,-151.0,0.00018795,2]
[381050971,1755975033540,-500.0,0.00018826,2]
[381050972,1755975033550,-5591.31319997,0.0001885,2]
[381050973,1755975033560,-466.93693002,0.000189,2]
[381050974,1755975033572,-191.74306998,0.000189,2]
[381050975,1755975033582,-196.25693002,0.000189,2]
[381050976,1755975033647,-123.42306998,0.000189,2]
[381050977,1755975033658,-500.0,0.00018904,2]
[381050978,1755975033667,-127.38734461,0.00018905,2]
[381050979,1755975033679,-300.0,0.00018905,2]
[381050983,1755975038244,-1129.0279,0.00018905,2]
[381051185,1755975040550,-151.0,0.00017393,2]
[381051187,1755975040559,-1463.19380299,0.00018905,2]
[381051194,1755975040614,-2778.58274077,0.00018905,2]
[381051196,1755975040623,-6012.72488454,0.0001896,2]
[381051198,1755975040632,-500.0,0.00018982,2]
[381051200,1755975040642,-2000.0,0.00019,2]
[381051202,1755975040651,-2000.0,0.00019,2]
[381051204,1755975040660,-2000.0,0.00019,2]
[381051206,1755975040670,-5717.82336136,0.00019015,2]
[381051208,1755975040679,-500.0,0.00019061,2]
[381051209,1755975040689,-500.0,0.00019139,2]
[381051212,1755975040698,-2000.0,0.00019177,2]
[381051213,1755975040707,-151.0,0.00019178,2]
[381051216,1755975040716,-5000.0,0.00019178,2]
[381051218,1755975040727,-300.0,0.00019195,2]
[381051220,1755975040737,-500.0,0.00019217,2]
[381051222,1755975040748,-200.0,0.00019273,2]
[381051224,1755975040758,-823.0,0.00019278,2]
[381051226,1755975040767,-500.0,0.00019295,2]
[381051228,1755975040777,-170.63411567,0.00019343,2]
[381051230,1755975040787,-500.0,0.00019374,2]
[381051232,1755975040796,-500.0,0.00019452,2]
[381051234,1755975040808,-500.0,0.0001953,2]
[381051236,1755975040819,-500.0,0.00019609,2]
[381051238,1755975040828,-500.0,0.00019687,2]
[381051240,1755975040837,-500.0,0.00019689,2]
[381051242,1755975040853,-156.587,0.00019726,2]
[381051244,1755975040863,-500.0,0.00019765,2]
[381051245,1755975040872,-500.0,0.00019843,2]
[381051246,1755975040881,-302.83,0.00019863,2]
[381051247,1755975040891,-1456.75,0.000199,2]
[381051248,1755975040900,-212.0,0.000199,2]
[381051249,1755975040909,-500.0,0.00019922,2]
[381051250,1755975040918,-658.68,0.0002,2]
[381051251,1755975040927,-213.59,0.0002,2]
[381051252,1755975040936,-500.0,0.0002,2]
[381051254,1755975040946,-200.0,0.0002,2]
[381051256,1755975040956,-153.03904681,0.00020064,2]
[381051258,1755975040965,-500.0,0.00020078,2]
[381051260,1755975040975,-925.0,0.00020103,2]
[381051262,1755975040984,-2066.53,0.00020103,2]
[381051264,1755975040993,-1255.0,0.00020103,2]
[381051266,1755975041003,-566.0,0.00020103,2]
[381051268,1755975041012,-1657.0,0.00020103,2]
[381051270,1755975041021,-6093.0,0.00020103,2]
[381051272,1755975041031,-4153.0,0.00020103,2]
[381051274,1755975041041,-718.0,0.00020103,2]
[381051276,1755975041050,-1000.0,0.00020139,2]
[381051278,1755975041059,-500.0,0.00020157,2]
[381051280,1755975041068,-334.5472959,0.00020164,2]
[381051282,1755975041077,-160.0,0.00020164,2]
[381051284,1755975041087,-287.61899177,0.00020164,2]
[381051286,1755975041096,-151.0,0.00020171,2]
[381051288,1755975041106,-1000.0,0.00020187,2]
[381051290,1755975041115,-1327.15,0.00020199,2]
[381051292,1755975041125,-500.0,0.00020235,2]
[381051294,1755975041134,-162.380719,0.00020274,2]
[381051296,1755975041143,-500.0,0.00020313,2]
[381051298,1755975041154,-431.0,0.00020383,2]
[381051300,1755975041164,-431.0,0.00020388,2]
[381051302,1755975041173,-500.0,0.00020391,2]
[381051304,1755975041183,-431.0,0.00020404,2]
[381051306,1755975041193,-431.0,0.00020453,2]
[381051308,1755975041203,-500.0,0.0002047,2]
[381051310,1755975041211,-431.0,0.00020483,2]
[381051313,1755975041223,-431.0,0.00020497,2]
[381051316,1755975041232,-431.0,0.00020504,2]
[381051319,1755975041241,-185.98,0.00020548,2]
[381051322,1755975041251,-500.0,0.00020548,2]
[381051325,1755975041259,-300.0,0.00020565,2]
[381051327,1755975041268,-260.62969634,0.00020568,2]
[381051329,1755975041277,-431.0,0.00020568,2]
[381051331,1755975041287,-431.0,0.00020653,2]
[381051333,1755975041296,-150.0,0.0002079,2]
[381051335,1755975041305,-431.0,0.00020804,2]
[381051337,1755975041314,-168.3888056,0.00020822,2]
[381051339,1755975041323,-431.0,0.00020992,2]
[381051341,1755975041332,-900.0,0.00021,2]
[381051342,1755975041342,-900.0,0.00021,2]
[381051344,1755975041351,-900.0,0.00021,2]
[381051346,1755975041360,-900.0,0.00021,2]
[381051348,1755975041369,-900.0,0.00021,2]
[381051350,1755975041379,-900.0,0.00021,2]
[381051352,1755975041388,-900.0,0.00021,2]
[381051354,1755975041397,-900.0,0.00021,2]
[381051356,1755975041407,-431.0,0.00021047,2]
[381051358,1755975041420,-1152.0,0.00021106,2]
[381051360,1755975041432,-431.0,0.00021108,2]
[381051362,1755975041443,-431.0,0.0002117,2]
[381051364,1755975041454,-431.0,0.00021182,2]
[381051366,1755975041463,-431.0,0.00021197,2]
[381051368,1755975041472,-431.0,0.00021216,2]
[381051370,1755975041482,-153.03904681,0.00021312,2]
[381051372,1755975041491,-174.61919141,0.0002137,2]
[381051374,1755975041500,-431.0,0.00021416,2]
[381051376,1755975041509,-381.9753551,0.00021533,2]
[381051378,1755975041518,-298.26089446,0.00021533,2]
[381051380,1755975041529,-721.12765535,0.00021534,2]
[381051382,1755975041538,-600.0,0.00021616,2]
[381051384,1755975041547,-431.0,0.00021785,2]
[381051386,1755975041556,-4689.5195,0.000218,2]
[381051388,1755975041565,-431.0,0.00021848,2]
[381051390,1755975041575,-5000.0,0.00021918,2]
[381051392,1755975041584,-181.08010149,0.00021918,2]
[381051394,1755975041594,-3052.56,0.00021945,30]
[381051396,1755975041603,-431.0,0.0002208,2]
[381051398,1755975041613,-1000.0,0.00022089,2]
[381051400,1755975041622,-431.0,0.00022092,2]
[381051402,1755975041631,-260.83,0.00022119,2]
[381051404,1755975041640,-600.0,0.00022164,2]
[381051406,1755975041649,-431.0,0.00022222,2]
[381051408,1755975041659,-431.0,0.00022368,2]
[381051410,1755975041668,-1000.0,0.00022377,2]
[381051412,1755975041678,-458.60200496,0.000224,3]
[381051414,1755975041687,-431.0,0.00022423,2]
[381051416,1755975041696,-187.78006525,0.00022466,2]
[381051418,1755975041706,-2000.0,0.000225,2]
[381051420,1755975041715,-129264.0,0.000225,2]
[381051422,1755975041726,-277.31641064,0.00022526,2]
[381051424,1755975041737,-1523.15058314,0.00022526,2]
[381051426,1755975041746,-153.03904681,0.0002256,2]
[381051428,1755975041755,-435.87409,0.0002257,2]
[381051430,1755975041764,-500.0,0.00022573,2]
[381051432,1755975041775,-302.83,0.00022603,2]
[381051434,1755975041784,-1387.8004977,0.00022626,2]
[381051436,1755975041793,-233768.44981937,0.00022626,2]
[381051439,1755975041814,-1354.95202825,0.00022626,2]
[381051441,1755975041826,-646.731372,0.00022626,2]
[381051443,1755975041837,-666.21030284,0.00022626,2]
[381051562,1755975043270,-894.0,0.00020103,2]
[381051563,1755975043280,-4020.63074859,0.00022626,2]
[381051564,1755975043489,-2332.31453982,0.00022626,2]
[381051565,1755975043500,-317.92,0.00022626,2]
[381051566,1755975043532,-10960.10327062,0.00022626,2]
[381051567,1755975043587,-5731.41317928,0.00022626,2]
[381051659,1755975047217,-8999.30480587,0.00022626,2]
[381051660,1755975047336,-25334.73251158,0.00022626,2]
[381051744,1755975924720,-195.78571586,0.00013596,2]
[381051745,1755975924744,-500.0,0.00013693,2]
[381051746,1755975924767,-500.0,0.00013693,2]
[381051747,1755975924789,-500.0,0.00013693,2]
[381051748,1755975924813,-500.0,0.00013693,2]
[381051749,1755975924836,-500.0,0.00013693,2]
[381051750,1755975924859,-500.0,0.00013693,2]
[381051751,1755975924883,-500.0,0.00013693,2]
[381051752,1755975924906,-500.0,0.00013693,2]
[381051753,1755975924930,-500.0,0.00013693,2]
[381051754,1755975924953,-649.49045537,0.00013693,2]
[381051755,1755975924976,-500.0,0.00013693,2]
[381051756,1755975924998,-500.0,0.00013693,2]
[381051757,1755975925020,-500.0,0.00013693,2]
[381051758,1755975925042,-500.0,0.00013693,2]
[381051759,1755975925065,-500.0,0.00013693,2]
[381051760,1755975925088,-500.0,0.00013693,2]
[381051761,1755975925112,-500.0,0.00013693,2]
[381051762,1755975925134,-500.0,0.00013693,2]
[381051763,1755975925158,-500.0,0.00013693,2]
[381051764,1755975925181,-500.0,0.00013693,2]
[381051765,1755975925204,-500.0,0.00013693,2]
[381051766,1755975925230,-500.0,0.00013693,2]
[381051767,1755975925254,-500.0,0.00013693,2]
[381051768,1755975925279,-500.0,0.00013693,2]
[381051769,1755975925304,-500.0,0.00013693,2]
[381051770,1755975925327,-500.0,0.00013693,2]
[381051771,1755975925350,-500.0,0.00013693,2]
[381051772,1755975925372,-150.0,0.00013694,2]
[381051773,1755975925395,-2000.0,0.00013698,3]
[381051774,1755975925417,-189.402741,0.00013698,2]
[381051775,1755975925440,-189.402741,0.00013698,2]
[381051776,1755975925462,-537.689533,0.00013698,2]
[381051777,1755975925483,-537.689533,0.00013698,2]
[381051778,1755975925505,-537.689533,0.00013698,2]
[381051779,1755975925527,-537.689533,0.00013698,2]
[381051780,1755975925548,-537.689533,0.00013698,2]
[381051781,1755975925570,-537.689533,0.00013698,2]
[381051782,1755975925591,-537.689533,0.00013698,2]
[381051783,1755975925614,-152.383591,0.00013698,2]
[381051784,1755975925636,-152.383591,0.00013698,2]
[381051785,1755975925658,-500.0,0.00013699,2]
[381051786,1755975925680,-1000.0,0.00013699,2]
[381051787,1755975925703,-537.689533,0.00013972,2]
[381051788,1755975925726,-537.689533,0.00013972,2]
[381051789,1755975925748,-152.383591,0.00013972,2]
[381051790,1755975926338,156.854359,0.00013698,2]
[381051791,1755975926446,156.854359,0.00013698,2]
[381051792,1755975926699,156.854359,0.00013972,2]
[381051798,1755975930174,161.269539,0.00013698,2]
[381051799,1755975930309,161.269539,0.00013972,2]
[381051800,1755975936847,200.14756171,0.00013902,2]
[381051801,1755975949720,181.16,0.00026305,120]
[381051809,1755975999807,288.0,0.00028767,120]
[381051819,1755976088379,1000.0,0.00013699,2]
[381051830,1755976144308,165.04,0.00013972,2]
[381051841,1755976231634,-430.45,0.00014244,2]
[381051842,1755976231644,-430.8,0.00014244,2]
[381051843,1755976231655,-420.34,0.00014244,2]
[381051844,1755976231667,-184.749985,0.00014244,2]
[381051845,1755976231678,-237.670015,0.00014244,2]
[381051846,1755976231687,-432.1,0.00014244,2]
[381051847,1755976231697,-423.6,0.00014244,2]
[381051848,1755976231706,-429.07,0.00014244,2]
[381051849,1755976231716,-416.92,0.00014244,2]
[381051850,1755976231725,-2829.05828697,0.00014244,2]
[381051851,1755976231734,-422.16,0.00014244,2]
[381051852,1755976231743,-422.0,0.00014244,2]
[381051853,1755976231754,-419.77,0.00014244,2]
[381051854,1755976231763,-427.82,0.00014244,2]
[381051855,1755976231773,-422.85,0.00014245,2]
[381051856,1755976231782,-428.42,0.00014245,2]
[381051857,1755976231792,-431.05,0.00014245,2]
[381051858,1755976231801,-150.0,0.00014245,2]
[381051859,1755976231810,-500.0,0.00014245,2]
[381051860,1755976231820,-500.0,0.00014245,2]
[381051861,1755976231830,-364.94904554,0.00014245,2]
[381051862,1755976231839,-429.18,0.00014245,2]
[381051863,1755976231848,-430.2,0.00014245,2]
[381051864,1755976231858,-419.57,0.00014245,2]
[381051865,1755976231867,-420.96,0.00014245,2]
[381051866,1755976231877,-303.02,0.00014246,2]
[381051867,1755976231887,-305.77,0.00014246,2]
[381051869,1755976231896,-301.01,0.00014246,2]
[381051871,1755976231905,-301.89,0.00014246,2]
[381051872,1755976231915,-303.44,0.00014246,2]
[381051873,1755976231924,-301.96,0.00014246,2]
[381051874,1755976231933,-301.8,0.00014246,2]
[381051875,1755976231942,-417.3,0.00014246,2]
[381051877,1755976231951,-431.1,0.00014246,2]
[381051879,1755976231961,-420.07,0.00014246,2]
[381051881,1755976231971,-419.21,0.00014246,2]
[381051883,1755976231981,-422.83,0.00014246,2]
[381051884,1755976231990,-2000.0,0.00014304,3]
[381051886,1755976232000,-305.69,0.00014315,2]
[381051888,1755976232010,-152.68,0.00014362,2]
[381051890,1755976232019,-1523.0,0.00014369,2]
[381051892,1755976232030,-221.85695829,0.000149,2]
[381051895,1755976232039,-221.85695829,0.000149,2]
[381051896,1755976232049,-250.0,0.00015,2]
[381051899,1755976232058,-2000.0,0.00015671,3]
[381051900,1755976232067,-153.0,0.00016164,2]
[381051902,1755976232076,-153.0,0.00016164,2]
[381051905,1755976232085,-153.0,0.00016164,2]
[381051908,1755976232094,-153.0,0.00016164,2]
[381051910,1755976232104,-153.0,0.00016164,2]
[381051912,1755976232114,-153.0,0.00016164,2]
[381051914,1755976232123,-153.0,0.00016164,2]
[381051916,1755976232133,-153.0,0.00016164,2]
[381051918,1755976232142,-153.0,0.00016164,2]
[381051920,1755976232152,-153.0,0.00016164,2]
[381051922,1755976232161,-153.0,0.00016164,2]
[381051924,1755976232171,-153.0,0.00016164,2]
[381051926,1755976232180,-151.0,0.00016428,2]
[381051928,1755976232190,-151.0,0.00016428,2]
[381051930,1755976232200,-500.0,0.00016428,2]
[381051932,1755976232209,-185.35046447,0.00016428,2]
[381051934,1755976232219,-500.0,0.00016428,2]
[381051936,1755976232228,-500.0,0.00016428,2]
[381051938,1755976232238,-522.6803858,0.00016428,2]
[381051940,1755976232248,-500.0,0.00016428,2]
[381051942,1755976232257,-327.57455592,0.00016428,2]
[381051944,1755976232267,-200.0,0.00016428,2]
[381051946,1755976232276,-151.0,0.00016428,2]
[381051948,1755976232285,-151.0,0.00016428,2]
[381051950,1755976232294,-151.0,0.00016428,2]
[381051952,1755976232304,-151.0,0.00016428,2]
[381051954,1755976232313,-151.0,0.00016428,2]
[381051956,1755976232323,-2000.0,0.00016438,2]
[381051958,1755976232332,-600.0,0.00016438,2]
[381051960,1755976232342,-600.0,0.00016438,2]
[381051962,1755976232351,-600.0,0.00016438,2]
[381051964,1755976232360,-600.0,0.00016438,2]
[381051966,1755976232369,-600.0,0.00016438,2]
[381051968,1755976232379,-600.0,0.00016438,2]
[381051970,1755976232388,-600.0,0.00016438,2]